bitfinex-derivatives/quotes_BNBF0:USTF0_20250316
["timestamp","ask_amount","ask_price","bid_price","bid_amount"]
[1742144642651,0.27846625,605.81,604.39,0.30380832]
[1742144643256,0.27846625,605.81,604.41,0.3309012]
[1742144643452,0.27846625,605.81,604.42,0.30380832]
[1742144643657,0.27846625,605.81,604.44,0.33088478]
[1742144646666,0.33013106,605.82,604.44,0.33088478]
[1742144646859,0.27874496,605.81,604.44,0.33088478]
[1742144647262,0.27874496,605.81,604.45,0.30375937]
[1742144648868,0.27874496,605.81,604.44,0.33088478]
[1742144649161,0.27874496,605.81,604.45,0.30369609]
[1742144650764,0.33013106,605.82,604.45,0.30369609]
[1742144651163,0.33013106,605.82,604.47,0.33086836]
[1742144651360,4.03651466,606.67,604.48,0.30369609]
[1742144651564,4.84618922,606.66,604.48,0.30369609]
[1742144651764,0.32968482,606.64,604.49,0.30369609]
[1742144651966,0.27877061,606.63,604.5,0.30369609]
[1742144652263,0.27877061,606.62,604.51,0.30369609]
[1742144652464,0.27877061,606.61,604.52,0.30369609]
[1742144652662,0.32968482,606.64,604.47,0.33086836]
[1742144652663,0.27877061,606.6,604.53,0.30369609]
[1742144653159,0.27877061,606.59,604.54,0.30369609]
[1742144653360,0.27877061,606.58,604.48,0.30369609]
[1742144653659,0.32968482,606.64,604.49,0.30369609]
[1742144653660,0.27877061,606.57,604.49,0.30369609]
[1742144653864,0.27877061,606.56,604.5,0.30369609]
[1742144654064,0.27877061,606.55,604.51,0.30369609]
[1742144654460,0.32968482,606.64,604.52,0.30369609]
[1742144654461,0.27877061,606.54,604.52,0.30369609]
[1742144654658,0.27877061,606.53,604.53,0.30369609]
[1742144654961,0.27877061,606.52,604.54,0.30369609]
[1742144655161,0.27877061,606.51,604.55,0.30369609]
[1742144655357,0.32968482,606.64,604.56,0.30369609]
[1742144655358,0.27877061,606.63,604.56,0.30369609]
[1742144655560,0.27877061,606.62,604.57,0.30369609]
[1742144655762,0.27877061,606.61,604.58,0.30369609]
[1742144655959,0.27877061,606.6,604.59,0.30369609]
[1742144656165,0.27877061,606.59,604.6,0.30369609]
[1742144656465,0.27877061,606.58,604.61,0.29190735]
[1742144656666,0.27877061,606.63,604.47,0.61831488]
[1742144656861,0.27877061,606.57,604.47,0.61831488]
[1742144657063,0.27877061,606.56,604.47,0.61831488]
[1742144657265,0.27877061,606.63,604.47,0.61831488]
[1742144657766,0.27877061,606.63,604.48,0.3034523]
[1742144657966,0.27877061,606.63,604.49,0.3034523]
[1742144658168,0.27877061,606.63,604.5,0.3034523]
[1742144658366,0.27877061,606.63,604.51,0.3034523]
[1742144658566,0.27877061,606.63,604.52,0.3034523]
[1742144658772,0.27877061,606.63,604.53,0.3034523]
[1742144658969,0.27877061,606.63,604.54,0.3034523]
[1742144659362,0.27877061,606.63,604.55,0.3034523]
[1742144659563,0.27877061,606.63,604.56,0.3034523]
[1742144659768,0.27877061,606.63,604.57,0.3034523]
[1742144660067,0.27877061,606.63,604.58,0.3034523]
[1742144660268,0.27877061,606.63,604.59,0.3034523]
[1742144660463,0.27877061,606.63,604.6,0.3034523]
[1742144660667,0.27877061,606.63,604.61,0.3034523]
[1742144660968,0.27877061,606.63,604.62,0.3034523]
[1742144661165,0.27877061,606.63,604.63,0.3034523]
[1742144661366,0.27877061,606.63,604.5,0.3034523]
[1742144661569,0.32968482,606.64,604.49,0.76442752]
[1742144661570,0.27877061,606.62,604.51,0.3034523]
[1742144661764,0.27877061,606.61,604.52,0.3034523]
[1742144661970,0.60847717,606.6,604.62,0.33078627]
[1742144662169,0.27877061,606.59,604.63,0.3034523]
[1742144662366,0.27877061,606.59,604.62,0.33078627]
[1742144662367,0.27877061,606.58,604.65,0.33076986]
[1742144662568,0.32972286,606.57,604.66,0.3034523]
[1742144662765,0.27877061,606.56,604.68,0.33075345]
[1742144662966,0.60849891,606.56,604.69,0.3034523]
[1742144663169,0.27877061,606.55,604.71,0.33073704]
[1742144663470,0.27877061,606.55,604.72,0.3034523]
[1742144664963,0.27877061,606.55,604.74,0.33072064]
[1742144665166,0.27877061,606.55,604.75,0.3034523]
[1742144665364,0.27877061,606.55,604.77,0.33070423]
[1742144665565,0.27877061,606.55,604.78,0.3034523]
[1742144667363,0.27877061,606.55,604.8,0.33068783]
[1742144667565,0.27877061,606.55,604.81,0.3034523]
[1742144670464,0.27877061,606.55,604.82,0.3034523]
[1742144670767,0.27877061,606.55,604.83,0.3034523]
[1742144671071,0.27877061,606.55,604.84,0.3034523]
[1742144671272,0.27877061,606.55,604.81,0.3034523]
[1742144671472,0.27877061,606.55,604.82,0.3034523]
[1742144671664,0.27877061,606.55,604.81,0.3034523]
[1742144671866,0.27877061,606.55,604.82,0.3034523]
[1742144672372,0.27877061,606.55,604.83,0.3034523]
[1742144672567,0.27877061,606.55,604.8,0.33068783]
[1742144672568,0.27877061,606.55,604.81,0.3034523]
[1742144672770,0.27877061,606.55,604.82,0.3034523]
[1742144673072,0.28020588,606.54,604.83,0.30337454]
[1742144673274,0.28020588,606.53,604.84,0.30337454]
[1742144673473,0.28020588,606.55,604.81,0.30337454]
[1742144673673,0.28020588,606.54,604.82,0.30337454]
[1742144673870,0.3297283,606.56,604.8,0.33068783]
[1742144673871,0.28020588,606.53,604.81,0.30337454]
[1742144674068,0.28020588,606.55,604.82,0.30337454]
[1742144674271,0.28020588,606.55,604.81,0.30337454]
[1742144674471,0.28020588,606.55,604.82,0.30337454]
[1742144674672,0.3297283,606.56,604.8,0.33068783]
[1742144674973,0.28019886,606.55,604.81,0.30336743]
[1742144676575,0.3297283,606.56,604.8,0.33068783]
[1742144676873,0.28019731,606.55,604.81,0.30336586]
[1742144678468,0.3297283,606.56,604.8,0.33068783]
[1742144678674,0.2801882,606.55,604.81,0.30335662]
[1742144678874,0.2801882,606.55,604.82,0.30335662]
[1742144679075,0.2801882,606.55,604.83,0.30335662]
[1742144679374,0.2801882,606.55,604.84,0.30335662]
[1742144679675,0.2801882,606.55,604.85,0.30335662]
[1742144679871,0.2801882,606.55,604.81,0.30335662]
[1742144680075,0.2801882,606.55,604.8,0.33068783]
[1742144680076,0.2801882,606.55,604.82,0.30335662]
[1742144680276,0.2801882,606.55,604.83,0.30335662]
[1742144680476,0.2801882,606.55,604.81,0.30335662]
[1742144680676,0.2801882,606.55,604.82,0.30335662]
[1742144680869,0.2801882,606.55,604.81,0.30335662]
[1742144681069,0.2801882,606.55,604.8,0.33068783]
[1742144681070,0.2801882,606.55,604.82,0.30335662]
[1742144681277,0.2801882,606.55,604.81,0.30335662]
[1742144684972,0.2801882,606.55,604.83,0.33067142]
[1742144685177,0.32973917,606.54,604.84,0.30335662]
[1742144685373,0.2801882,606.53,604.86,0.33065502]
[1742144685579,0.32975004,606.52,604.87,0.30335662]
[1742144685781,0.2801882,606.51,604.89,0.33063862]
[1742144686182,0.2801882,606.5,604.9,0.30357563]
[1742144686381,0.2801882,606.49,604.9,0.30357563]
[1742144686576,0.2801882,606.48,604.91,0.33062769]
[1742144686779,0.2801882,606.47,604.92,0.30357563]
[1742144686981,0.2801882,606.46,604.92,0.30357563]
[1742144687180,0.2801882,606.45,604.92,0.30357563]
[1742144687377,0.2801882,606.44,604.92,0.30357563]
[1742144687578,0.2801882,606.43,604.92,0.30357563]
[1742144687785,0.32975004,606.52,604.79,0.28744533]
[1742144687786,0.60999262,606.42,604.93,0.33061676]
[1742144688083,2.52099649,606.32,604.94,0.30354634]
[1742144688277,0.2801882,606.31,604.95,0.33060583]
[1742144689881,0.2801882,606.4,604.95,0.33060583]
[1742144691086,0.32982074,606.39,604.95,0.33060583]
[1742144691385,0.2801882,606.38,604.95,0.33060583]
[1742144691583,0.61001438,606.38,604.95,0.33060583]
[1742144691883,0.2801882,606.37,604.95,0.33060583]
[1742144692681,0.61001982,606.37,604.95,0.33060583]
[1742144692985,0.2801882,606.36,604.95,0.33060583]
[1742144694184,0.3298425,606.35,604.95,0.33060583]
[1742144694381,0.2801882,606.34,604.95,0.33060583]
[1742144695079,0.3298425,606.35,604.95,0.33060583]
[1742144695278,0.28042299,606.33,604.95,0.33060583]
[1742144695582,0.28042299,606.32,604.95,0.33060583]
[1742144695779,0.28042299,606.34,604.95,0.33060583]
[1742144696085,0.28042299,606.33,604.95,0.33060583]
[1742144696283,0.28042299,606.34,604.95,0.33060583]
[1742144697082,0.3298425,606.35,604.95,0.33060583]
[1742144697280,0.28041059,606.34,604.95,0.33060583]
[1742144697685,0.2691877,606.34,604.95,0.33060583]
[1742144697984,0.32985338,606.33,604.95,0.33060583]
[1742144698687,0.28043124,606.32,604.95,0.33060583]
[1742144698888,0.32986426,606.31,604.95,0.33060583]
[1742144699081,0.28043124,606.3,604.95,0.33060583]
[1742144699284,0.32987514,606.29,604.95,0.33060583]
[1742144699487,0.28043124,606.28,604.95,0.33060583]
[1742144702688,0.28040205,606.27,604.95,0.33060583]
[1742144702889,0.28040205,606.28,604.95,0.33060583]
[1742144703088,0.28040205,606.27,604.95,0.33060583]
[1742144703390,0.28040205,606.26,604.95,0.33060583]
[1742144703590,0.28040205,606.28,604.95,0.33060583]
[1742144703789,0.28040205,606.27,604.95,0.33060583]
[1742144704088,0.28040205,606.26,604.95,0.33060583]
[1742144704290,0.28040205,606.28,604.95,0.33060583]
[1742144704489,0.28040205,606.27,604.95,0.33060583]
[1742144704683,0.28040205,606.26,604.95,0.33060583]
[1742144704886,0.32987514,606.29,604.95,0.33060583]
[1742144704887,0.28040205,606.28,604.95,0.33060583]
[1742144705089,0.28040205,606.25,604.95,0.33060583]
[1742144705287,0.28040205,606.24,604.95,0.33060583]
[1742144705487,0.28040205,606.28,604.95,0.33060583]
[1742144705684,0.28040205,606.27,604.95,0.33060583]
[1742144705889,0.28040205,606.28,604.95,0.33060583]
[1742144706184,0.28040205,606.27,604.96,0.405]
[1742144706386,0.28040205,606.28,604.97,0.3305949]
[1742144708089,0.28038405,606.27,604.97,0.3305949]
[1742144708284,0.28038405,606.26,604.97,0.3305949]
[1742144708491,0.28038405,606.28,604.97,0.3305949]
[1742144708690,0.28038405,606.27,604.97,0.3305949]
[1742144708991,0.28038405,606.26,604.97,0.3305949]
[1742144709192,0.28038405,606.28,604.97,0.3305949]
[1742144709385,0.28038405,606.27,604.97,0.3305949]
[1742144709584,0.28038405,606.28,604.97,0.3305949]
[1742144709887,0.28038405,606.27,604.97,0.3305949]
[1742144710191,0.28038405,606.26,604.97,0.3305949]
[1742144710392,0.28038405,606.25,604.97,0.3305949]
[1742144710591,0.28038405,606.28,604.97,0.3305949]
[1742144710788,0.28038405,606.27,604.97,0.3305949]
[1742144710992,0.28038405,606.28,604.97,0.3305949]
[1742144711192,0.32987514,606.29,604.97,0.3305949]
[1742144711193,0.28038405,606.26,604.97,0.3305949]
[1742144711390,0.28038405,606.25,604.97,0.3305949]
[1742144711587,0.28038405,606.28,604.97,0.3305949]
[1742144711893,0.28038405,606.27,604.97,0.3305949]
[1742144712091,0.28038405,606.28,604.97,0.3305949]
[1742144712291,0.28038405,606.27,604.97,0.3305949]
[1742144712592,0.28038405,606.26,604.97,0.3305949]
[1742144712792,0.28038405,606.26,604.98,0.3035616]
[1742144712992,0.28038405,606.25,604.99,0.33058397]
[1742144713188,0.32987514,606.29,604.99,0.33058397]
[1742144713394,0.28017592,606.24,604.99,0.33058397]
[1742144713592,0.28017592,606.23,604.99,0.33058397]
[1742144713787,0.28017592,606.22,604.99,0.33058397]
[1742144713989,0.28017592,606.28,604.99,0.33058397]
[1742144714189,0.28017592,606.21,604.99,0.33058397]
[1742144714394,0.28017592,606.2,604.99,0.33058397]
[1742144714590,0.28017592,606.28,604.99,0.33058397]
[1742144716796,0.28017592,606.72,604.99,0.33058397]
[1742144716997,0.32964678,606.71,604.99,0.33058397]
[1742144717193,0.28019905,606.7,604.99,0.33058397]
[1742144717998,0.28019905,606.7,605.0,0.30342796]
[1742144718897,0.28019905,606.7,605.02,0.33056758]
[1742144719292,0.32965765,606.69,605.03,0.30342796]
[1742144719491,0.32965765,606.69,605.02,0.33056758]
[1742144719492,0.28019905,606.68,605.02,0.33056758]
[1742144719899,0.60986213,606.68,605.02,0.33056758]
[1742144720199,0.28019905,606.67,605.03,0.30342589]
[1742144720395,0.28019905,606.67,605.05,0.33055119]
[1742144721495,0.28019905,606.67,605.06,0.3033882]
[1742144721698,0.28019905,606.67,605.08,0.3305348]
[1742144721995,0.28019905,606.67,605.09,0.3033882]
[1742144722190,0.28019905,606.67,605.11,0.33051841]
[1742144722396,0.28019905,606.67,605.12,0.3033882]
[1742144722594,0.32966308,606.68,605.11,0.33051841]
[1742144722794,0.27994073,606.67,605.12,0.30337656]
[1742144722995,0.27994073,606.67,605.14,0.33050203]
[1742144723201,0.27994073,606.67,605.15,0.30337656]
[1742144723396,0.27994073,606.67,605.17,0.33048564]
[1742144723600,0.27994073,606.67,605.18,0.30337656]
[1742144723796,0.27994073,606.67,605.2,0.33046926]
[1742144723996,0.27994073,606.67,605.21,0.30337656]
[1742144724203,0.27994073,606.67,605.23,0.33045288]
[1742144724902,0.27994073,606.67,605.24,0.3033661]
[1742144725197,0.27994073,606.67,605.26,0.3304365]
[1742144728005,0.32966308,606.68,605.26,0.3304365]
[1742144728404,0.27996171,606.67,605.26,0.3304365]
[1742144730004,0.32966308,606.68,605.26,0.3304365]
[1742144730205,0.27985789,606.67,605.26,0.3304365]
[1742144733706,0.32966308,606.68,605.26,0.3304365]
[1742144733908,0.27974276,606.67,605.26,0.3304365]
[1742144735816,0.27974106,606.66,605.26,0.3304365]
[1742144736015,0.32966308,606.68,605.26,0.3304365]
[1742144736016,0.27974106,606.67,605.26,0.3304365]
[1742144737414,0.32966308,606.68,605.26,0.3304365]
[1742144737614,0.27934764,606.67,605.26,0.3304365]
[1742144740913,0.27934764,606.66,605.27,0.30339401]
[1742144741218,0.27934764,606.65,605.27,0.30339401]
[1742144741412,0.27934764,606.64,605.27,0.30339401]
[1742144741614,0.32966308,606.68,605.27,0.30339401]
[1742144741615,0.27934764,606.63,605.27,0.30339401]
[1742144742117,0.27934764,606.62,605.27,0.30339401]
[1742144742317,0.27934764,606.61,605.27,0.30339401]
[1742144742510,0.27934764,606.6,605.27,0.30339401]
[1742144742714,0.27934764,606.59,605.27,0.30339401]
[1742144742918,0.32966308,606.68,605.26,0.3304365]
[1742144743119,0.27965531,606.67,605.26,0.3304365]
[1742144744018,0.27965531,606.66,605.26,0.3304365]
[1742144744218,0.27965531,606.65,605.26,0.3304365]
[1742144744417,0.27965531,606.64,605.26,0.3304365]
[1742144744613,0.27965531,606.63,605.26,0.3304365]
[1742144744813,0.27965531,606.62,605.26,0.3304365]
[1742144745013,0.27965531,606.61,605.26,0.3304365]
[1742144745321,0.27965531,606.6,605.26,0.3304365]
[1742144745512,0.27965531,606.67,605.26,0.3304365]
[1742144745715,0.27965531,606.66,605.26,0.3304365]
[1742144745916,0.27965531,606.65,605.26,0.3304365]
[1742144746116,0.27965531,606.67,605.26,0.3304365]
[1742144748120,0.32966308,606.68,605.26,0.3304365]
[1742144748420,0.27935489,606.67,605.26,0.3304365]
[1742144759727,0.32966308,606.68,605.26,0.3304365]
[1742144759928,0.28012527,606.67,605.26,0.3304365]
[1742144762832,0.60979378,606.67,605.26,0.3304365]
[1742144763231,0.28012527,606.66,605.26,0.3304365]
[1742144768628,0.28005566,606.65,605.26,0.3304365]
[1742144768828,0.28005566,606.66,605.26,0.3304365]
[1742144775831,0.28021779,606.65,605.26,0.3304365]
[1742144776038,0.28021779,606.66,605.26,0.3304365]
[1742144777838,0.32966851,606.67,605.26,0.3304365]
[1742144778138,0.28020266,606.66,605.26,0.3304365]
[1742144778938,0.28020266,606.66,605.27,0.30335219]
[1742144780633,0.28020266,606.66,605.26,0.3304365]
[1742144781034,0.28020266,606.66,605.27,0.30336681]
[1742144781437,0.28020266,606.66,605.29,0.33042012]
[1742144781641,0.28020266,606.66,605.3,0.30336681]
[1742144781841,0.28020266,606.66,605.29,0.33042012]
[1742144782041,0.28020266,606.66,605.3,0.30337023]
[1742144782640,0.28020266,606.66,605.29,0.33042012]
[1742144782841,0.28020266,606.66,605.3,0.30337197]
[1742144783242,0.28020266,606.66,605.29,0.33042012]
[1742144783442,0.28020266,606.66,605.31,0.33040921]
[1742144783843,0.28020266,606.66,605.32,0.30336869]
[1742144784044,0.28020266,606.66,605.34,0.33039283]
[1742144785146,0.28020266,606.66,605.35,0.491]
[1742144785446,0.28020266,606.66,605.36,0.33038192]
[1742144785638,0.32966851,606.67,605.36,0.33038192]
[1742144785843,0.28019668,606.66,605.36,0.33038192]
[1742144786948,0.28019581,606.65,605.36,0.33038192]
[1742144787143,0.32966851,606.67,605.36,0.33038192]
[1742144787144,0.28019581,606.66,605.36,0.33038192]
[1742144788945,0.28026862,606.65,605.36,0.33038192]
[1742144789146,0.28026862,606.66,605.36,0.33038192]
[1742144789346,0.28026862,606.65,605.36,0.33038192]
[1742144789549,0.28026862,606.66,605.36,0.33038192]
[1742144794353,0.28026862,606.65,605.36,0.33038192]
[1742144794555,0.28026862,606.66,605.36,0.33038192]
[1742144794755,0.28026862,606.65,605.36,0.33038192]
[1742144795056,0.28026862,606.64,605.36,0.33038192]
[1742144795257,0.28026862,606.66,605.36,0.33038192]
[1742144795449,0.28026862,606.65,605.36,0.33038192]
[1742144795648,0.28026862,606.66,605.36,0.33038192]
[1742144795853,0.28026862,606.65,605.36,0.33038192]
[1742144796157,0.28026862,606.66,605.36,0.33038192]
[1742144796356,0.28026862,606.65,605.36,0.33038192]
[1742144796556,0.28026862,606.66,605.36,0.33038192]
[1742144796758,0.28026862,606.65,605.36,0.33038192]
[1742144796952,0.28026862,606.66,605.36,0.33038192]
[1742144797154,0.28026862,606.65,605.36,0.33038192]
[1742144797457,0.28026862,606.64,605.36,0.33038192]
[1742144797654,0.28026862,606.66,605.36,0.33038192]
[1742144797861,0.28026862,606.65,605.36,0.33038192]
[1742144798061,0.28018435,606.64,605.36,0.33038192]
[1742144798259,0.28018435,606.66,605.36,0.33038192]
[1742144798558,0.28018435,606.65,605.36,0.33038192]
[1742144798760,0.28018435,606.66,605.36,0.33038192]
[1742144798960,0.28018435,606.65,605.36,0.33038192]
[1742144799166,0.28018435,606.66,605.36,0.33038192]
[1742144799366,0.28018435,606.65,605.36,0.33038192]
[1742144799567,0.28018435,606.66,605.36,0.33038192]
[1742144799766,0.28017007,606.65,605.36,0.33038192]
[1742144799963,0.32966851,606.67,605.36,0.33038192]
[1742144800169,0.28012482,606.66,605.36,0.33038192]
[1742144801570,0.28010875,606.65,605.36,0.33038192]
[1742144801771,0.28010875,606.66,605.36,0.33038192]
[1742144801971,0.28010875,606.65,605.36,0.33038192]
[1742144802275,0.28010875,606.64,605.36,0.33038192]
[1742144802466,0.28010875,606.66,605.36,0.33038192]
[1742144803874,0.32966851,606.67,605.36,0.33038192]
[1742144804069,0.28008474,606.66,605.36,0.33038192]
[1742144805267,0.28010428,606.65,605.36,0.33038192]
[1742144805472,0.28010428,606.66,605.36,0.33038192]
[1742144805674,0.28010428,606.65,605.36,0.33038192]
[1742144805870,0.28010428,606.64,605.36,0.33038192]
[1742144806070,0.28010428,606.63,605.36,0.33038192]
[1742144806469,0.28010428,606.62,605.36,0.33038192]
[1742144806675,0.28010428,606.66,605.36,0.33038192]
[1742144806870,0.28010428,606.65,605.36,0.33038192]
[1742144807070,0.28025333,606.64,605.36,0.33038192]
[1742144807275,0.28025333,606.66,605.36,0.33038192]
[1742144807575,0.28025333,606.65,605.36,0.33038192]
[1742144807775,0.28025333,606.66,605.36,0.33038192]
[1742144810570,0.28025429,606.65,605.36,0.33038192]
[1742144810773,0.28025429,606.64,605.36,0.33038192]
[1742144810976,0.28025429,606.63,605.36,0.33038192]
[1742144811175,0.28025429,606.62,605.36,0.33038192]
[1742144811377,0.28025429,606.61,605.36,0.33038192]
[1742144811679,0.28025429,606.6,605.36,0.33038192]
[1742144811876,0.28025429,606.66,605.36,0.33038192]
[1742144812072,0.28025429,606.65,605.36,0.33038192]
[1742144812276,0.32966851,606.67,605.36,0.33038192]
[1742144812476,0.28023601,606.66,605.36,0.33038192]
[1742144816283,0.28022478,606.65,605.36,0.33038192]
[1742144816587,0.28022478,606.64,605.36,0.33038192]
[1742144816787,0.28022478,606.66,605.36,0.33038192]
[1742144817085,0.28022478,606.65,605.36,0.33038192]
[1742144817285,0.28022478,606.66,605.36,0.33038192]
[1742144817482,0.28022478,606.65,605.36,0.33038192]
[1742144817682,0.28022478,606.64,605.36,0.33038192]
[1742144817887,0.28022478,606.66,605.36,0.33038192]
[1742144818081,0.28022478,606.65,605.36,0.33038192]
[1742144818279,0.28022478,606.66,605.36,0.33038192]
[1742144818480,0.28022478,606.65,605.36,0.33038192]
[1742144818682,0.28022478,606.66,605.36,0.33038192]
[1742144818887,0.28022478,606.65,605.36,0.33038192]
[1742144819182,0.28022478,606.64,605.36,0.33038192]
[1742144819380,0.28022478,606.66,605.36,0.33038192]
[1742144819584,0.28022478,606.65,605.36,0.33038192]
[1742144819786,0.28022478,606.66,605.36,0.33038192]
[1742144820085,0.2802653,606.65,605.36,0.33038192]
[1742144820384,0.2802653,606.64,605.36,0.33038192]
[1742144820586,0.2802653,606.66,605.36,0.33038192]
[1742144820887,0.2802653,606.65,605.36,0.33038192]
[1742144821289,0.2802653,606.64,605.36,0.33038192]
[1742144821788,0.2802653,606.63,605.36,0.33038192]
[1742144821986,0.2802653,606.66,605.36,0.33038192]
[1742144822187,0.2802653,606.65,605.36,0.33038192]
[1742144822382,0.2802653,606.66,605.36,0.33038192]
[1742144822887,0.32966851,606.67,605.36,0.33038192]
[1742144823287,0.28026779,606.66,605.36,0.33038192]
[1742144830191,0.28019097,606.65,605.36,0.33038192]
[1742144830589,0.28019097,606.64,605.36,0.33038192]
[1742144830991,0.28019097,606.63,605.36,0.33038192]
[1742144831195,0.28019097,606.66,605.36,0.33038192]
[1742144831389,0.28019097,606.65,605.36,0.33038192]
[1742144831593,0.28019097,606.64,605.36,0.33038192]
[1742144831795,0.28019097,606.63,605.36,0.33038192]
[1742144831993,0.28019097,606.62,605.36,0.33038192]
[1742144832192,0.28019097,606.66,605.36,0.33038192]
[1742144832394,0.28019097,606.65,605.36,0.33038192]
[1742144832590,0.28019097,606.66,605.36,0.33038192]
[1742144832895,0.28019097,606.65,605.36,0.33038192]
[1742144833190,0.28019097,606.64,605.36,0.33038192]
[1742144833389,0.28019097,606.63,605.36,0.33038192]
[1742144833590,0.28019097,606.66,605.36,0.33038192]
[1742144833891,0.28019097,606.65,605.36,0.33038192]
[1742144834093,0.28019097,606.66,605.37,0.477]
[1742144834288,0.28019097,606.65,605.38,0.330371]
[1742144834491,0.28019097,606.66,605.38,0.330371]
[1742144834688,0.28019097,606.65,605.38,0.330371]
[1742144834891,0.28019097,606.66,605.38,0.330371]
[1742144835891,0.32966851,606.67,605.38,0.330371]
[1742144836090,0.28014453,606.66,605.38,0.330371]
[1742144837596,0.32966851,606.67,605.38,0.330371]
[1742144837794,0.28009267,606.66,605.38,0.330371]
[1742144843300,0.32966851,606.67,605.38,0.330371]
[1742144843500,0.27985687,606.66,605.38,0.330371]
[1742144848612,0.28014819,606.65,605.38,0.330371]
[1742144848813,0.28014819,606.66,605.38,0.330371]
[1742144849006,0.32966851,606.67,605.38,0.330371]
[1742144849007,0.28014819,606.65,605.38,0.330371]
[1742144849406,0.28014819,606.64,605.38,0.330371]
[1742144849606,0.32966851,606.67,605.38,0.330371]
[1742144849607,0.28014819,606.66,605.38,0.330371]
[1742144850509,0.2801666,606.65,605.38,0.330371]
[1742144850715,0.2801666,606.66,605.38,0.330371]
[1742144850909,0.2801666,606.65,605.39,0.30333043]
[1742144851211,0.2801666,606.64,605.39,0.30333043]
[1742144851412,0.2801666,606.64,605.41,0.33035463]
[1742144851712,0.2801666,606.63,605.42,0.30333043]
[1742144851908,0.2801666,606.66,605.42,0.30333043]
[1742144852212,0.32966851,606.67,605.42,0.30333043]
[1742144852213,0.2801666,606.65,605.42,0.30333043]
[1742144852514,0.2801666,606.66,605.42,0.30333043]
[1742144852714,0.2801666,606.64,605.42,0.30333043]
[1742144852914,0.2801666,606.63,605.41,0.33035463]
[1742144853109,0.2801666,606.66,605.41,0.33035463]
[1742144853414,0.2801666,606.65,605.41,0.33035463]
[1742144853610,0.2801666,606.9,605.41,0.33035463]
[1742144855115,0.2801666,606.92,605.41,0.33035463]
[1742144855415,0.2801666,606.91,605.41,0.33035463]
[1742144855613,0.2801666,606.93,605.41,0.33035463]
[1742144855815,2.50503755,606.94,605.41,0.33035463]
[1742144856119,0.28005078,606.93,605.41,0.33035463]
[1742144856320,0.28005078,606.93,605.42,0.30319843]
[1742144856916,2.50503755,607.54,605.42,0.30319843]
[1742144856917,0.28005078,607.53,605.44,0.33033826]
[1742144857219,0.32921268,607.51,605.45,0.30319843]
[1742144857519,0.28005078,607.5,605.47,0.33032189]
[1742144857816,0.32922894,607.48,605.47,0.33032189]
[1742144858016,0.28005078,607.47,605.47,0.33032189]
[1742144858322,0.3292452,607.45,605.47,0.33032189]
[1742144858514,0.28005078,607.44,605.47,0.33032189]
[1742144858722,0.32926146,607.42,605.47,0.33032189]
[1742144859020,0.28005078,607.41,605.47,0.33032189]
[1742144859621,0.32926146,607.42,605.47,0.33032189]
[1742144859622,0.28002148,607.4,605.47,0.33032189]
[1742144859815,0.28002148,607.39,605.47,0.33032189]
[1742144860022,0.28002148,607.38,605.47,0.33032189]
[1742144860220,0.28002148,607.41,605.47,0.33032189]
[1742144860415,0.32927772,607.39,605.47,0.33032189]
[1742144860620,0.28002148,607.38,605.47,0.33032189]
[1742144860821,0.32928857,607.37,605.47,0.33032189]
[1742144861016,0.28002148,607.36,605.47,0.33032189]
[1742144861223,0.32929941,607.35,605.47,0.33032189]
[1742144861620,0.28002156,607.34,605.47,0.33032189]
[1742144861921,0.32931025,607.33,605.47,0.33032189]
[1742144862121,0.28002156,607.32,605.47,0.33032189]
[1742144862320,0.3293211,607.31,605.47,0.33032189]
[1742144862526,0.28002156,607.3,605.47,0.33032189]
[1742144862726,0.32933195,607.29,605.47,0.33032189]
[1742144862923,0.28002156,607.28,605.47,0.33032189]
[1742144863321,0.28006165,607.27,605.47,0.33032189]
[1742144863622,0.60940986,607.26,605.47,0.33032189]
[1742144863821,0.28006165,607.25,605.47,0.33032189]
[1742144864026,0.60941529,607.25,605.47,0.33032189]
[1742144864326,0.28006165,607.24,605.47,0.33032189]
[1742144864523,0.32936449,607.23,605.47,0.33032189]
[1742144864726,0.28006165,607.22,605.47,0.33032189]
[1742144864923,0.32937533,607.21,605.47,0.33032189]
[1742144865124,0.28004572,607.2,605.47,0.33032189]
[1742144865322,0.32938618,607.19,605.47,0.33032189]
[1742144865522,0.28004572,607.18,605.48,0.30321329]
[1742144865828,0.28004572,607.18,605.5,0.33030553]
[1742144866031,0.32939703,607.17,605.5,0.33030553]
[1742144866331,0.28004572,607.16,605.5,0.33030553]
[1742144866522,0.32940788,607.15,605.5,0.33030553]
[1742144866726,0.280071,607.14,605.5,0.33030553]
[1742144867228,0.280071,607.13,605.5,0.33030553]
[1742144867630,0.280071,607.14,605.5,0.33030553]
[1742144867828,0.280071,607.13,605.5,0.33030553]
[1742144868029,0.32942416,607.12,605.5,0.33030553]
[1742144868224,0.280071,607.11,605.5,0.33030553]
[1742144868424,0.32943501,607.1,605.5,0.33030553]
[1742144868632,0.280071,607.09,605.5,0.33030553]
[1742144868827,0.32944587,607.08,605.5,0.33030553]
[1742144869032,0.280071,607.07,605.5,0.33030553]
[1742144869234,0.32945672,607.06,605.5,0.33030553]
[1742144869629,0.280071,607.05,605.5,0.33030553]
[1742144869828,0.32946758,607.04,605.5,0.33030553]
[1742144870035,0.280071,607.03,605.5,0.33030553]